fUST/lending_fUST_20250702
["ID","MTS","AMOUNT","RATE_DAILY","PERIOD"]
[368936084,1751397040383,-12571.40790328,0.00019385,2]
[368936085,1751397040393,-507.85330897,0.00019488,2]
[368936087,1751397040403,-460.0,0.00019552,2]
[368936088,1751397040412,-460.0,0.00019552,2]
[368936090,1751397040423,-460.0,0.00019552,2]
[368936091,1751397040433,-460.0,0.00019552,2]
[368936092,1751397040442,-529.1,0.00019552,2]
[368936093,1751397040451,-493.89,0.00019553,2]
[368936094,1751397040461,-460.0,0.00019553,2]
[368936096,1751397040471,-460.0,0.00019555,2]
[368936097,1751397040480,-713.88,0.00019555,2]
[368936099,1751397040490,-1594.5721192,0.00019624,2]
[368936101,1751397040500,-609.43349894,0.00019659,2]
[368936103,1751397040510,-460.0,0.00019826,2]
[368936106,1751397040520,-460.0,0.00019826,2]
[368936108,1751397040530,-460.0,0.00019826,2]
[368936110,1751397040540,-460.0,0.00019826,2]
[368936112,1751397040550,-529.1,0.00019826,2]
[368936114,1751397040559,-493.89,0.00019827,2]
[368936116,1751397040568,-429.40208312,0.00019827,2]
[368936118,1751397040578,-460.0,0.00019829,2]
[368936120,1751397040589,-713.88,0.00019829,2]
[368936122,1751397040598,-1594.5721192,0.00019866,2]
[368936124,1751397040608,-300.0,0.0002,2]
[368936126,1751397040617,-460.0,0.000201,2]
[368936128,1751397040627,-460.0,0.000201,2]
[368936130,1751397040637,-460.0,0.000201,2]
[368936132,1751397040647,-460.0,0.000201,2]
[368936134,1751397040657,-529.1,0.000201,2]
[368936136,1751397040667,-493.89,0.00020101,2]
[368936138,1751397040676,-460.0,0.00020103,2]
[368936140,1751397040686,-713.88,0.00020103,2]
[368936142,1751397040696,-1594.5721192,0.00020107,2]
[368936144,1751397040706,-202.683747,0.00020187,2]
[368936146,1751397040715,-1594.5721192,0.00020348,3]
[368936148,1751397040725,-460.0,0.00020374,2]
[368936150,1751397040739,-460.0,0.00020374,2]
[368936152,1751397040748,-460.0,0.00020374,2]
[368936154,1751397040758,-460.0,0.00020374,2]
[368936157,1751397040768,-529.1,0.00020374,2]
[368936159,1751397040779,-493.89,0.00020375,2]
[368936161,1751397040788,-460.0,0.00020377,2]
[368936163,1751397040798,-713.88,0.00020377,2]
[368936165,1751397040809,-587.0,0.00020582,2]
[368936167,1751397040819,-1594.5721192,0.0002059,3]
[368936169,1751397040828,-507.85330897,0.00020601,2]
[368936171,1751397040838,-319.529,0.00020623,2]
[368936173,1751397040848,-460.0,0.00020648,2]
[368936175,1751397040858,-460.0,0.00020648,2]
[368936177,1751397040868,-460.0,0.00020648,2]
[368936179,1751397040878,-460.0,0.00020648,2]
[368936181,1751397040888,-529.1,0.00020648,2]
[368936183,1751397040898,-493.89,0.00020649,2]
[368936185,1751397040908,-213.43993365,0.00020651,2]
[368936187,1751397040918,-713.88,0.00020651,2]
[368936189,1751397040927,-150.3,0.00020785,4]
[368936191,1751397040937,-1594.5721192,0.00020831,4]
[368936193,1751397040947,-390.54,0.000209,2]
[368936195,1751397040957,-20000.0,0.000209,51]
[368936197,1751397040967,-460.0,0.00020922,2]
[368936199,1751397040976,-460.0,0.00020922,2]
[368936201,1751397040986,-460.0,0.00020922,2]
[368936203,1751397040995,-460.0,0.00020922,2]
[368936205,1751397041006,-529.1,0.00020922,2]
[368936207,1751397041015,-493.89,0.00020923,2]
[368936209,1751397041025,-713.88,0.00020925,2]
[368936226,1751397041162,-179.60902492,0.00020936,2]
[368936228,1751397041171,-1594.5721192,0.00021072,4]
[368936230,1751397041186,-150.3,0.00021188,4]
[368936232,1751397041195,-460.0,0.00021196,2]
[368936234,1751397041205,-460.0,0.00021196,2]
[368936236,1751397041214,-460.0,0.00021196,2]
[368936238,1751397041224,-460.0,0.00021196,2]
[368936240,1751397041233,-493.89,0.00021197,2]
[368936242,1751397041243,-713.88,0.00021199,2]
[368936244,1751397041252,-1594.5721192,0.00021314,5]
[368936246,1751397041262,-207.4,0.00021353,2]
[368936248,1751397041271,-5000.0,0.00021353,2]
[368936250,1751397041281,-2444.2393665,0.00021353,2]
[368936252,1751397041290,-500.0,0.00021353,2]
[368936254,1751397041299,-500.0,0.00021353,2]
[368936256,1751397041309,-500.0,0.00021353,2]
[368936258,1751397041319,-500.0,0.00021353,2]
[368936260,1751397041329,-690.642,0.00021353,2]
[368936263,1751397041340,-500.0,0.00021353,2]
[368936264,1751397041350,-500.0,0.00021353,2]
[368936267,1751397041360,-500.0,0.00021353,2]
[368936269,1751397041370,-642.89610342,0.00021353,2]
[368936270,1751397041379,-500.0,0.00021388,2]
[368936273,1751397041389,-716.195754,0.00021408,2]
[368936275,1751397041399,-613.62792901,0.00021463,2]
[368936277,1751397041409,-380.64,0.0002147,2]
[368936279,1751397041418,-218.44,0.0002147,2]
[368936281,1751397041428,-460.0,0.0002147,2]
[368936283,1751397041438,-460.0,0.0002147,2]
[368936285,1751397041447,-493.89,0.00021471,2]
[368936287,1751397041456,-713.88,0.00021473,2]
[368936289,1751397041466,-881.64,0.000215,2]
[368936291,1751397041475,-1594.5721192,0.00021555,5]
[368936293,1751397041485,-150.3,0.00021591,5]
[368936295,1751397041495,-507.85330897,0.00021714,2]
[368936297,1751397041504,-460.0,0.00021744,2]
[368936299,1751397041513,-460.0,0.00021744,2]
[368936301,1751397041523,-493.89,0.00021745,2]
[368936302,1751397041532,-713.88,0.00021747,2]
[368936304,1751397041541,-1594.5721192,0.00021797,6]
[368936306,1751397041550,-4465.0,0.00021853,2]
[368936308,1751397041559,-171.0,0.00021902,2]
[368936310,1751397041569,-150.3,0.00021994,5]
[368936312,1751397041578,-460.0,0.00022018,2]
[368936314,1751397041587,-460.0,0.00022018,2]
[368936316,1751397041596,-493.89,0.00022019,2]
[368936318,1751397041605,-713.88,0.00022021,2]
[368936320,1751397041615,-1594.5721192,0.00022038,6]
[368936322,1751397041624,-1594.5721192,0.00022279,6]
[368936324,1751397041634,-460.0,0.00022292,2]
[368936326,1751397041643,-460.0,0.00022292,2]
[368936329,1751397041653,-493.89,0.00022293,2]
[368936330,1751397041662,-713.88,0.00022295,2]
[368936333,1751397041673,-171.0,0.00022298,2]
[368936335,1751397041682,-171.0,0.00022306,2]
[368936337,1751397041692,-150.3,0.00022396,5]
[368936339,1751397041701,-1594.5721192,0.00022521,7]
[368936341,1751397041710,-460.0,0.00022566,2]
[368936343,1751397041719,-367.12,0.00022566,2]
[368936345,1751397041732,-493.89,0.00022567,2]
[368936347,1751397041741,-713.88,0.00022569,2]
[368936349,1751397041751,-215.0738,0.00022722,2]
[368936351,1751397041760,-1594.5721192,0.00022762,7]
[368936353,1751397041770,-150.3,0.00022799,6]
[368936354,1751397041780,-507.85330897,0.00022827,2]
[368936356,1751397041791,-355.22082572,0.0002284,2]
[368936359,1751397041800,-493.89,0.00022841,2]
[368936361,1751397041811,-713.88,0.00022843,2]
[368936363,1751397041822,-500.0,0.00022858,2]
[368936365,1751397041831,-646.0,0.00022925,2]
[368936367,1751397041841,-2151.0,0.00022925,2]
[368936369,1751397041850,-406.0,0.00022925,2]
[368936371,1751397041860,-1594.5721192,0.00023003,8]
[368936373,1751397041869,-390.54,0.000231,7]
[368936375,1751397041879,-493.89,0.00023115,2]
[368936377,1751397041888,-713.88,0.00023117,2]
[368936378,1751397041898,-500.0,0.00023131,2]
[368936381,1751397041907,-150.3,0.00023202,6]
[368936382,1751397041917,-1594.5721192,0.00023245,8]
[368936384,1751397041926,-493.99218655,0.00023389,2]
[368936386,1751397041935,-714.06,0.00023391,2]
[368936388,1751397041945,-185.98507631,0.00023486,9]
[368936398,1751397042027,-1408.58704289,0.00023486,9]
[368936400,1751397042037,-500.0,0.00023512,2]
[368936402,1751397042046,-500.0,0.0002358,2]
[368936404,1751397042056,-150.3,0.00023605,6]
[368936406,1751397042066,-1594.5721192,0.00023728,9]
[368936408,1751397042075,-504.23206355,0.00023782,2]
[368936410,1751397042085,-1473.12990921,0.00023798,2]
[368936412,1751397042095,-23426.5514881,0.00023798,2]
[368936414,1751397042106,-504.23206355,0.00023882,2]
[368936416,1751397042115,-12800.7746206,0.00023888,2]
[368936419,1751397042126,-28070.63635837,0.00023888,2]
[368936421,1751397042138,-69043.67256342,0.00023888,2]
[368936423,1751397042154,-529.1,0.00021196,2]
[368936425,1751397042163,-1570.75863507,0.00023888,2]
[368936428,1751397042176,-11121.93669482,0.00023888,2]
[368936430,1751397042191,-580.51443761,0.00023888,2]
[368936432,1751397042202,-418.70153219,0.00023888,2]
[368936435,1751397042214,-3142.9278289,0.00023888,2]
[368936437,1751397042225,-2785.61879609,0.00023888,2]
[368936439,1751397042236,-871.02418909,0.00023888,2]
[368936441,1751397042248,-105416.17744114,0.00023888,2]
[368936443,1751397042257,-175.72665235,0.00023918,2]
[368936445,1751397042267,-507.85330897,0.00023939,2]
[368936447,1751397042276,-460.0,0.00023967,2]
[368936449,1751397042285,-460.0,0.00023967,2]
[368936451,1751397042295,-1594.5721192,0.00023969,10]
[368936453,1751397042304,-504.23206355,0.00023982,2]
[368936455,1751397042313,-209.0,0.0002399,2]
[368936457,1751397042322,-1481.69,0.00024,7]
[368936459,1751397042331,-12144.23,0.00024,7]
[368936462,1751397042341,-160.0,0.00024,7]
[368936464,1751397042351,-837.20943635,0.00024,7]
[368936466,1751397042360,-230.32585361,0.00024,7]
[368936468,1751397042370,-524.61914904,0.00024,3]
[368936470,1751397042379,-524.61914904,0.00024,3]
[368936472,1751397042388,-215.01728679,0.00024,7]
[368936474,1751397042398,-150.3,0.00024008,7]
[368936476,1751397042406,-1473.12990921,0.00024049,2]
[368936478,1751397042416,-504.23206355,0.00024082,2]
[368936479,1751397042425,-223.0315306,0.00024091,2]
[368936481,1751397042435,-1000.0,0.00024152,2]
[368936482,1751397042444,-171.0,0.00024153,2]
[368936484,1751397042453,-504.23206355,0.00024182,2]
[368936486,1751397042463,-366.1147399,0.00024192,2]
[368936488,1751397042472,-1594.5721192,0.0002421,10]
[368936490,1751397042481,-175.72665235,0.00024219,2]
[368936492,1751397042491,-504.23206355,0.00024282,2]
[368936495,1751397042501,-1473.12990921,0.00024299,2]
[368936496,1751397042510,-209.0,0.000243,2]
[368936499,1751397042520,-1363.995661,0.00024303,4]
[368936501,1751397042530,-1646.8926066,0.00024321,3]
[368936503,1751397042539,-354.6593042,0.00024329,2]
[368936505,1751397042548,-153.0,0.00024329,2]
[368936507,1751397042557,-504.23206355,0.00024382,2]
[368936509,1751397042567,-2674.25726464,0.000244,2]
[368936510,1751397042576,-150.3,0.0002441,7]
[368936512,1751397042587,-23426.55148808,0.00024425,2]
[368936514,1751397042596,-900.0,0.00024443,2]
[368936516,1751397042605,-200.0,0.0002445,11]
[368936518,1751397042615,-1594.5721192,0.00024452,11]
[368936520,1751397042624,-504.23206355,0.00024482,2]
[368936522,1751397042634,-151.0,0.000245,10]
[368936524,1751397042643,-175.72665235,0.00024548,2]
[368936526,1751397042653,-1473.12990921,0.0002455,2]
[368936528,1751397042662,-504.23206355,0.00024582,2]
[368936530,1751397042671,-151.0,0.000246,5]
[368936532,1751397042680,-390.54,0.000246,7]
[368936534,1751397042690,-153.0,0.00024603,2]
[368936536,1751397042699,-153.0,0.00024603,2]
[368936538,1751397042709,-209.0,0.0002461,2]
[368936540,1751397042718,-200.0,0.00024658,15]
[368936542,1751397042729,-504.23206355,0.00024682,2]
[368936544,1751397042740,-193.96505387,0.00024689,2]
[368936546,1751397042750,-1594.5721192,0.00024693,11]
[368936548,1751397042759,-151.0,0.000247,10]
[368936550,1751397042768,-504.23206355,0.00024782,2]
[368936552,1751397042778,-151.0,0.000248,7]
[368936554,1751397042787,-169.04463359,0.000248,2]
[368936556,1751397042798,-1591.5877946,0.000248,2]
[368936558,1751397042807,-1473.12990921,0.000248,2]
[368936560,1751397042817,-108347.294108,0.000248,2]
[368936562,1751397042827,-150.3,0.00024813,7]
[368936564,1751397042837,-504.23206355,0.00024882,2]
[368936566,1751397042847,-12038.5882342,0.0002489,2]
[368936568,1751397042856,-12038.5882342,0.00024892,2]
[368936570,1751397042865,-281518.22300141,0.00024899,7]
[368936587,1751397043026,-529.1,0.0002147,2]
[368936589,1751397043036,-529.1,0.00021744,2]
[368936591,1751397043046,-529.1,0.00022018,2]
[368936593,1751397043056,-529.1,0.00022292,2]
[368936596,1751397043066,-529.1,0.00022566,2]
[368936598,1751397043075,-529.1,0.0002284,2]
[368936600,1751397043085,-529.1,0.00023114,2]
[368936601,1751397043095,-529.19695545,0.00023388,2]
[368936603,1751397043105,-179.60902492,0.00023788,2]
[368936605,1751397043114,-206587.49401963,0.00024899,7]
[368936608,1751397043126,-88729.28035333,0.00024899,7]
[368936611,1751397043156,460.0,0.00017087,2]
[368936614,1751397043169,-907.47632761,0.00024899,7]
[368936616,1751397043181,-5000.0,0.00024899,7]
[368936618,1751397043192,-11653.89040294,0.00024899,7]
[368936709,1751397043861,-227102.54781875,0.00024899,7]
[368936879,1751397046118,185.58356487,0.00017087,2]
[368936883,1751397046141,274.41643513,0.00017087,2]
[368937685,1751397054973,460.0,0.00017087,2]
[368937686,1751397059828,460.0,0.00017087,2]
[368937687,1751397065823,460.0,0.00017087,2]
[368937688,1751397066836,460.0,0.00017087,2]
[368937689,1751397070384,444.25031917,0.00017087,2]
[368937690,1751397075113,500.0,0.00017087,2]
[368937691,1751397075395,629.79222965,0.00017088,2]
[368937692,1751397081436,507.63,0.000183,30]
[368937693,1751397083563,460.0,0.00017087,2]
[368937694,1751397083998,462.7981668,0.00017087,2]
[368937695,1751397092176,460.0,0.00017086,2]
[368937696,1751397106568,244.29459454,0.00017087,2]
[368937697,1751397123194,507.63,0.00024658,120]
[368937698,1751397124367,460.0,0.00017087,2]
[368937699,1751397131121,460.0,0.00017087,2]
[368937700,1751397133288,461.85412519,0.00017087,2]
[368937701,1751397134716,336.34685223,0.00017087,2]
[368937702,1751397139442,460.0,0.00017087,2]
[368937703,1751397143525,494.61,0.00017086,2]
[368937704,1751397143685,379.9585558,0.00017087,2]
[368937705,1751397145467,460.0,0.00017086,2]
[368937706,1751397147245,460.0,0.00017087,2]
[368937707,1751397149265,460.0,0.00017087,2]
[368937708,1751397152361,204.0830117,0.00017087,2]
[368937709,1751397152383,255.9169883,0.00017087,2]
[368937710,1751397154610,496.13952696,0.00017087,2]
[368937711,1751397154764,460.0,0.00017087,2]
[368937712,1751397156424,460.0,0.00017087,2]
[368937713,1751397158138,605.77127993,0.00017087,2]
[368937714,1751397159235,1015.27,0.0002,90]
[368937715,1751397159772,460.0,0.00017087,2]
[368937716,1751397168249,460.0,0.00017087,2]
[368937717,1751397168954,157.28781708,0.00017087,2]
[368937718,1751397178820,460.0,0.00017087,2]
[368937719,1751397191952,349.75324321,0.00017087,2]
[368937720,1751397203903,460.0,0.00017086,2]
[368937721,1751397205863,460.0,0.00017086,2]
[368937722,1751397213550,460.0,0.00017086,2]
[368937723,1751397215924,500.0,0.00017087,2]
[368937724,1751397216261,500.0,0.00017088,2]
[368937725,1751397217341,460.0,0.00017087,2]
[368937726,1751397221189,460.0,0.00017087,2]
[368937727,1751397228754,460.0,0.00017086,2]
[368937728,1751397236777,460.0,0.00017086,2]
[368937729,1751397244894,199.0722401,0.00017087,2]
[368937730,1751397261776,460.0,0.00017087,2]
[368937731,1751397283496,460.0,0.00017087,2]
[368937732,1751397285840,460.0,0.00017087,2]
[368937733,1751397301967,460.0,0.00017087,2]
[368937734,1751397321487,460.0,0.00017087,2]
[368937735,1751397330074,375.9188003,0.00017087,2]
[368937736,1751397344190,200.87230318,6.9e-07,2]
[368937737,1751397363833,461.86744919,0.00017087,2]
[368937738,1751397388277,444.42892706,0.00016839,2]
[368937740,1751397448935,460.0,0.00017086,2]
[368937741,1751397450976,460.0,0.00017086,2]
[368937742,1751397488390,4515.7553513,0.00016428,2]
[368937743,1751397534861,460.0,0.00017086,2]
[368937744,1751397572416,460.0,0.00017086,2]
[368937745,1751397620058,1277.21607339,0.00017088,2]
[368937746,1751397620085,314.3717212,0.00017088,2]
[368937747,1751397689879,192.863562,0.00016838,2]
[368937748,1751397690179,170.22557523,0.00016839,2]
[368937749,1751397809052,182.415372,0.00013699,2]
[368937751,1751397937131,-347.59533279,0.00017259,2]
[368937752,1751397937153,-205.61546908,0.0001726,2]
[368937753,1751397937176,-300.0,0.00017356,2]
[368937754,1751397937197,-300.0,0.00017356,2]
[368937755,1751397937218,-300.0,0.00017356,2]
[368937756,1751397937239,-300.0,0.00017356,2]
[368937757,1751397937260,-300.0,0.00017356,2]
[368937758,1751397937281,-1200.0,0.00017356,2]
[368937759,1751397937304,-500.0,0.00017357,2]
[368937760,1751397937325,-272.07629339,0.00017357,2]
[368937761,1751397937346,-289.7191986,0.00017357,2]
[368937762,1751397937368,-535.28720751,0.00017357,2]
[368937763,1751397937390,-500.0,0.00017357,2]
[368937764,1751397937411,-500.0,0.00017357,2]
[368937765,1751397937433,-500.0,0.00017357,2]
[368937766,1751397937454,-500.0,0.00017357,2]
[368937767,1751397937475,-15.57286864,0.00017357,2]
[368937769,1751397951090,-345.38433521,0.00017357,2]
[368937770,1751398047093,-300.0,0.00017355,2]
[368937771,1751398047115,-600.45908013,0.00017356,2]
[368937772,1751398051079,-599.54091987,0.00017356,2]
[368937773,1751398051102,-500.0,0.00017356,2]
[368937774,1751398051124,-500.0,0.00017356,2]
[368937775,1751398051145,-500.0,0.00017356,2]
[368937776,1751398051164,-500.0,0.00017356,2]
[368937777,1751398051185,-500.0,0.00017356,2]
[368937778,1751398051207,-500.0,0.00017356,2]
[368937779,1751398051229,-500.0,0.00017356,2]
[368937780,1751398051250,-500.0,0.00017356,2]
[368937781,1751398051273,-500.0,0.00017356,2]
[368937782,1751398051295,-500.0,0.00017356,2]
[368937783,1751398051316,-402.1878989,0.00017356,2]
[368937784,1751398051336,-500.0,0.00017356,2]
[368937785,1751398051356,-211.62935071,0.00017356,2]
[368937786,1751398051375,-162.59933981,0.00017356,2]
[368937787,1751398051396,-500.0,0.00017356,2]
[368937788,1751398051417,-500.0,0.00017356,2]
[368937789,1751398051439,-500.0,0.00017356,2]
[368937790,1751398051459,-500.0,0.00017356,2]
[368937791,1751398051480,-177.03001801,0.00017356,2]
[368937792,1751398051502,-500.0,0.00017356,2]
[368937793,1751398051521,-500.0,0.00017356,2]
[368937794,1751398051543,-500.0,0.00017356,2]
[368937795,1751398051564,-500.0,0.00017356,2]
[368937796,1751398051586,-500.0,0.00017356,2]
[368937797,1751398051607,-480.17051775,0.00017356,2]
[368937798,1751398051628,-528.8375338,0.00017356,2]
[368937799,1751398051650,-500.0,0.00017356,2]
[368937800,1751398051672,-500.0,0.00017356,2]
[368937801,1751398051693,-500.0,0.00017356,2]
[368937802,1751398051715,-500.0,0.00017356,2]
[368937803,1751398051737,-500.0,0.00017356,2]
[368937804,1751398051761,-500.0,0.00017356,2]
[368937805,1751398051784,-500.0,0.00017356,2]
[368937806,1751398051806,-500.0,0.00017356,2]
[368937807,1751398051827,-500.0,0.00017356,2]
[368937808,1751398051848,-500.0,0.00017356,2]
[368937809,1751398051871,-500.0,0.00017356,2]
[368937810,1751398051891,-354.54624863,0.00017356,2]
[368937811,1751398051917,-500.0,0.00017356,2]
[368937812,1751398051943,-460.0,0.00017358,2]
[368937813,1751398051968,-460.0,0.00017358,2]
[368937814,1751398051992,-460.0,0.00017358,2]
[368937815,1751398052014,-206.26384601,0.00017358,2]
[368937816,1751398052093,-253.73615399,0.00017358,2]
[368937817,1751398052117,-81.96618876,0.00017358,2]
[368937818,1751398096922,413.66786421,0.00010618,2]
[368937819,1751398098773,11342.38732878,0.000125,2]
[368937820,1751398110475,276.85650792,0.00014114,2]
[368937821,1751398112778,281.68839846,0.0001,2]
[368937822,1751398118596,6825.5236702,0.00017,2]
[368937823,1751398118618,20000.0,0.00017,2]
[368937824,1751398118641,20000.0,0.00017,2]
[368937825,1751398118664,9059.20052839,0.00017,2]
[368937829,1751398178657,5000.0,0.000171,2]
[368937830,1751398193815,5000.0,0.000171,2]
[368937831,1751398211223,940.79947161,0.000171,2]
[368937832,1751398211246,4059.20052839,0.000171,2]
[368937833,1751398228678,5000.0,0.000171,2]
[368937841,1751398231861,-193.1257436,0.00017256,2]
[368937842,1751398231871,-193.12574359,0.00017258,2]
[368937843,1751398231881,-300.0,0.00017356,2]
[368937844,1751398231891,-300.0,0.00017356,2]
[368937845,1751398231903,-673.0,0.00017356,2]
[368937846,1751398231913,-565.9047708,0.00017357,2]
[368937847,1751398231924,-500.0,0.00017357,2]
[368937848,1751398231934,-503.20417042,0.00017357,2]
[368937849,1751398231943,-164.46339086,0.00017357,2]
[368937850,1751398231952,-594.94958318,0.00017357,2]
[368937851,1751398231962,-364.11444645,0.00017357,2]
[368937852,1751398231972,-460.0,0.00017357,2]
[368937853,1751398231981,-460.0,0.00017357,2]
[368937854,1751398231991,-460.0,0.00017357,2]
[368937855,1751398232001,-460.0,0.00017357,2]
[368937856,1751398232011,-525.62,0.00017357,2]
[368937857,1751398232020,-460.0,0.00017357,2]
[368937858,1751398232030,-460.0,0.00017357,2]
[368937859,1751398232040,-460.0,0.00017357,2]
[368937860,1751398232050,-494.89,0.00017357,2]
[368937861,1751398232059,-460.0,0.00017357,2]
[368937863,1751398232068,-460.0,0.00017357,2]
[368937865,1751398232077,-460.0,0.00017357,2]
[368937867,1751398232087,-632.31,0.00017357,2]
[368937868,1751398232097,-460.0,0.00017357,2]
[368937869,1751398232111,-500.0,0.00017357,2]
[368937870,1751398232121,-378.03381124,0.00017358,2]
[368937871,1751398232132,-460.0,0.00017358,2]
[368937872,1751398232144,-460.0,0.00017358,2]
[368937873,1751398232155,-460.0,0.00017358,2]
[368937874,1751398232173,-460.0,0.00017358,2]
[368937875,1751398232185,-460.0,0.00017358,2]
[368937876,1751398232196,-460.0,0.00017358,2]
[368937877,1751398232207,-460.0,0.00017358,2]
[368937878,1751398232216,-460.0,0.00017358,2]
[368937879,1751398232227,-242.59415518,0.00017358,2]
[368937880,1751398232236,-588.11926283,0.00017358,2]
[368937881,1751398232247,-500.0,0.00017358,2]
[368937882,1751398232257,-332.00622941,0.00017358,2]
[368937883,1751398232267,-594.86998744,0.00017358,2]
[368937884,1751398232278,-500.0,0.00017358,2]
[368937885,1751398232289,-500.0,0.00017358,2]
[368937886,1751398232299,-500.0,0.00017358,2]
[368937887,1751398232308,-460.0,0.00017358,2]
[368937888,1751398232318,-321.2632589,0.00017358,2]
[368937889,1751398232328,-500.0,0.00017358,2]
[368937890,1751398232338,-329.4654856,0.00017358,2]
[368937891,1751398232347,-460.0,0.00017358,2]
[368937892,1751398232358,-460.0,0.00017358,2]
[368937893,1751398232369,-460.0,0.00017358,2]
[368937894,1751398232380,-460.0,0.00017358,2]
[368937895,1751398232390,-460.0,0.00017358,2]
[368937896,1751398232399,-460.0,0.00017358,2]
[368937897,1751398232410,-460.0,0.00017358,2]
[368937898,1751398232419,-460.0,0.00017358,2]
[368937899,1751398232428,-460.0,0.00017358,2]
[368937900,1751398232438,-460.0,0.00017358,2]
[368937901,1751398232448,-460.0,0.00017358,2]
[368937902,1751398232458,-460.0,0.00017358,2]
[368937903,1751398232467,-460.0,0.00017358,2]
[368937904,1751398232477,-460.0,0.00017358,2]
[368937905,1751398232486,-460.0,0.00017358,2]
[368937906,1751398232496,-460.0,0.00017358,2]
[368937907,1751398232505,-460.0,0.00017358,2]
[368937908,1751398232515,-460.0,0.00017358,2]
[368937909,1751398232524,-460.0,0.00017358,2]
[368937910,1751398232534,-460.0,0.00017358,2]
[368937911,1751398232544,-460.0,0.00017358,2]
[368937912,1751398232554,-1262.15640018,0.00017358,2]
[368937913,1751398232563,-460.0,0.00017358,2]
[368937914,1751398232572,-5373.04439576,0.00017358,2]
[368937915,1751398232586,-546.50562813,0.00017358,2]
[368937916,1751398232598,-10860.22976421,0.00017358,2]
[368937917,1751398232608,-460.0,0.00017359,2]
[368937918,1751398232618,-460.0,0.00017359,2]
[368937919,1751398232627,-460.0,0.00017359,2]
[368937920,1751398232637,-460.0,0.00017359,2]
[368937921,1751398232646,-471.20004662,0.00017359,2]
[368937922,1751398232656,-473.96188062,0.00017359,2]
[368937923,1751398232666,-460.0,0.00017359,2]
[368937924,1751398232675,-460.0,0.00017359,2]
[368937925,1751398232685,-460.0,0.00017359,2]
[368937926,1751398232695,-460.0,0.00017359,2]
[368937927,1751398232705,-316.94377066,0.00017359,2]
[368937928,1751398232715,-460.0,0.00017359,2]
[368937929,1751398232724,-460.0,0.00017359,2]
[368937930,1751398232734,-460.0,0.00017359,2]
[368937931,1751398232744,-460.0,0.00017359,2]
[368937932,1751398232754,-460.0,0.00017359,2]
[368937933,1751398232764,-460.0,0.00017359,2]
[368937934,1751398232774,-460.0,0.00017359,2]
[368937935,1751398232783,-460.0,0.00017359,2]
[368937936,1751398232794,-460.0,0.00017359,2]
[368937937,1751398232804,-460.0,0.00017359,2]
[368937938,1751398232814,-460.0,0.00017359,2]
[368937939,1751398232824,-460.0,0.00017359,2]
[368937940,1751398232834,-460.0,0.00017359,2]
[368937941,1751398232843,-424.6179984,0.00017359,2]
[368937942,1751398232853,-476.24,0.00017359,2]
[368937943,1751398232863,-460.0,0.00017359,2]
[368937944,1751398232873,-460.0,0.00017359,2]
[368937945,1751398232883,-460.0,0.00017359,2]
[368937946,1751398232892,-460.0,0.00017359,2]
[368937947,1751398232902,-460.0,0.00017359,2]
[368937948,1751398232912,-460.0,0.00017359,2]